bitfinex/quotes_BTCUSD_20260221
["timestamp","ask_amount","ask_price","bid_price","bid_amount"]
[1771708565869,0.0002,68335.0,68333.0,0.0731707]
[1771708566371,0.0002,68335.0,68332.0,0.07317173]
[1771708567482,0.0002,68335.0,68331.0,0.07317286]
[1771708568234,0.00016,68340.0,68328.0,0.00022]
[1771708568382,0.00016,68340.0,68336.0,0.07316712]
[1771708569443,0.00016,68340.0,68337.0,0.07316645]
[1771708569637,0.10387881,68344.0,68337.0,0.07316645]
[1771708569843,0.10387881,68344.0,68338.0,0.07316494]
[1771708569844,0.03071942,68344.0,68338.0,0.07316494]
[1771708570068,0.03071942,68344.0,68338.0,0.07302123]
[1771708570269,0.10387893,68344.0,68337.0,0.07316467]
[1771708571203,0.03071942,68344.0,68338.0,0.07316498]
[1771708571346,0.07315827,68345.0,68338.0,0.07316498]
[1771708573981,0.0002,68344.0,68338.0,0.07316498]
[1771708574584,0.0002,68344.0,68336.0,0.07316762]
[1771708574897,0.07316352,68341.0,68333.0,0.07317028]
[1771708575139,0.07316252,68341.0,68335.0,0.07316894]
[1771708575263,0.07316252,68341.0,68334.0,0.07316998]
[1771708575920,0.07316385,68340.0,68333.0,0.07317028]
[1771708576096,0.07316345,68342.0,68334.0,0.07317]
[1771708576895,0.07316345,68342.0,68335.0,0.07316846]
[1771708577089,0.2847448,68347.0,68330.0,0.05628791]
[1771708577268,0.03073178,68346.0,68340.0,0.0731635]
[1771708577428,0.03073178,68346.0,68340.0,0.07301979]
[1771708578052,0.03073178,68346.0,68341.0,0.07316215]
[1771708580674,0.03093178,68346.0,68341.0,0.07316215]
[1771708581634,0.07315257,68351.0,68341.0,0.07316215]
[1771708581635,0.00016,68360.0,68341.0,0.27592867]
[1771708581801,0.00016,68360.0,68348.0,0.07315494]
[1771708581802,0.07314739,68356.0,68348.0,0.07315494]
[1771708581947,0.07314539,68357.0,68348.0,0.07315494]
[1771708581948,0.03085911,68354.0,68348.0,0.07315494]
[1771708582151,0.28487213,68354.0,68349.0,0.07315323]
[1771708582406,0.28487213,68354.0,68348.0,0.07315494]
[1771708582407,0.03085911,68353.0,68350.0,0.07315282]
[1771708582979,0.00027664,68360.0,68340.0,0.05628791]
[1771708583182,0.03113575,68360.0,68342.0,0.27592867]
[1771708583432,0.03085911,68358.0,68352.0,0.07315071]
[1771708584666,0.28487213,68358.0,68353.0,0.07314887]
[1771708584866,0.03209485,68359.0,68353.0,0.07314887]
[1771708586883,0.03209485,68359.0,68352.0,0.07315071]
[1771708586884,0.29254933,68365.0,68352.0,0.07315071]
[1771708586885,0.03211325,68368.0,68352.0,0.29259871]
[1771708587028,0.00016,68370.0,68353.0,0.07314917]
[1771708587029,0.28612627,68360.0,68353.0,0.07314917]
[1771708587228,0.03211325,68358.0,68352.0,0.00011664]
[1771708587466,0.25401302,68367.0,68352.0,0.00011664]
[1771708587669,0.03211325,68365.0,68356.0,0.07314591]
[1771708587842,0.03338847,68363.0,68357.0,0.0731453]
[1771708588043,0.0002,68359.0,68358.0,0.07314432]
[1771708589685,0.0002,68359.0,68357.0,0.07314511]
[1771708589912,0.0001577,68367.0,68352.0,0.00011664]
[1771708590110,0.03342564,68366.0,68362.0,0.07313979]
[1771708590395,0.03342564,68366.0,68353.0,0.29259844]
[1771708590396,0.25401302,68364.0,68352.0,0.00011664]
[1771708590574,0.25401302,68362.0,68352.0,0.00011664]
[1771708590776,0.03342564,68361.0,68356.0,0.07314566]
[1771708591554,0.14669142,68363.0,68356.0,0.07314566]
[1771708592573,0.14669142,68363.0,68357.0,0.07314531]
[1771708595070,0.14689142,68363.0,68357.0,0.07314531]
[1771708595876,0.14689142,68363.0,68355.0,0.07314566]
[1771708595877,0.14689142,68363.0,68356.0,0.07314617]
[1771708596603,0.24503045,68363.0,68356.0,0.07314617]
[1771708597483,0.17189142,68363.0,68356.0,0.07314617]
[1771708598100,0.14689142,68363.0,68352.0,0.00011664]
[1771708598303,0.14689142,68363.0,68350.0,0.07315272]
[1771708598304,0.30278019,68354.0,68350.0,0.07315272]
[1771708598657,0.025,68353.0,68340.0,0.17588]
[1771708598927,0.025,68353.0,68348.0,0.07315427]
[1771708599128,0.025,68353.0,68349.0,0.07315356]
[1771708602718,0.0252,68353.0,68349.0,0.07315356]
[1771708604663,0.14669142,68352.0,68347.0,0.07315427]
[1771708604875,0.025,68351.0,68348.0,0.07315427]
[1771708605372,0.025,68351.0,68340.0,0.18366806]
[1771708605373,0.025,68349.0,68340.0,0.17588]
[1771708605533,0.025,68348.0,68342.0,0.07316072]
[1771708606663,0.025,68348.0,68346.0,0.07315642]
[1771708606977,0.14669142,68352.0,68347.0,0.0731561]
[1771708607179,0.14669142,68352.0,68348.0,0.07315458]
[1771708607481,0.0002,68353.0,68348.0,0.07315458]
[1771708607636,0.14669142,68352.0,68348.0,0.07315458]
[1771708607860,0.14669142,68352.0,68349.0,0.07315392]
[1771708608053,0.14669142,68352.0,68348.0,0.07315483]
[1771708608876,0.0252,68353.0,68348.0,0.07315483]
[1771708609094,0.0252,68353.0,68349.0,0.07315365]
[1771708609370,0.14669142,68352.0,68350.0,0.07315193]
[1771708609756,0.07314447,68358.0,68350.0,0.07315193]
[1771708609757,0.025,68369.0,68350.0,0.00016]
[1771708609973,0.025,68365.0,68358.0,0.07314347]
[1771708610573,0.025,68365.0,68359.0,0.07314286]
[1771708610774,0.0002,68364.0,68359.0,0.07314286]
[1771708610981,0.025,68363.0,68359.0,0.07314286]
[1771708612086,0.025,68363.0,68358.0,0.07314409]
[1771708612427,0.025,68363.0,68359.0,0.07314294]
[1771708615617,0.0002,68364.0,68360.0,0.07314204]
[1771708617556,0.0002,68364.0,68359.0,0.07314294]
[1771708619755,0.0252,68364.0,68359.0,0.07314294]
[1771708621980,0.0002,68364.0,68361.0,0.07314032]
[1771708622177,0.07313265,68369.0,68361.0,0.07314032]
[1771708623074,0.09813265,68369.0,68361.0,0.07314032]
[1771708625466,0.025,68369.0,68360.0,0.29256643]
[1771708625740,0.025,68369.0,68362.0,0.0731392]
[1771708626104,0.025,68369.0,68363.0,0.07313881]
[1771708626594,0.025,68369.0,68362.0,0.0731392]
[1771708627012,0.29251069,68374.0,68360.0,0.07314152]
[1771708627013,0.00016,68380.0,68360.0,0.00016]
[1771708627252,0.00016,68380.0,68361.0,0.27016138]
[1771708627253,0.025,68379.0,68361.0,0.27016138]
[1771708627594,0.00027662,68380.0,68370.0,0.02467876]
[1771708627727,0.00027662,68380.0,68377.0,0.07312386]
[1771708627921,0.00027662,68380.0,68376.0,0.07312451]
[1771708630763,0.00027662,68380.0,68363.0,0.29254307]
[1771708630764,0.02329111,68380.0,68372.0,0.07312886]
[1771708631017,0.02301449,68379.0,68373.0,0.07312749]
[1771708632482,0.27399272,68379.0,68374.0,0.0731272]
[1771708632683,0.02480784,68378.0,68375.0,0.07312613]
[1771708633309,0.00027662,68380.0,68375.0,0.07312613]
[1771708635118,0.00027662,68380.0,68374.0,0.07312705]
[1771708635635,0.02508446,68380.0,68374.0,0.07312705]
[1771708638068,0.02480784,68379.0,68375.0,0.07312604]
[1771708638859,0.07311576,68385.0,68375.0,0.07312604]
[1771708638861,0.27399272,68396.0,68382.0,0.07311781]
[1771708639074,0.01137295,68384.0,68383.0,0.07311665]
[1771708639986,0.01137295,68384.0,68380.0,0.07328036]
[1771708640162,0.01137295,68384.0,68382.0,0.07311865]
[1771708640336,0.01146695,68384.0,68382.0,0.07311865]
[1771708640531,0.01146695,68384.0,68383.0,0.07311758]
[1771708642746,0.01146695,68384.0,68382.0,0.07311853]
[1771708642952,0.01146695,68384.0,68380.0,0.07328046]
[1771708643717,0.01146695,68384.0,68381.0,0.07311925]
[1771708643880,0.01146695,68384.0,68373.0,0.29250942]
[1771708643881,0.27399272,68383.0,68370.0,0.00794806]
[1771708644085,0.02480784,68382.0,68370.0,0.00016]
[1771708644290,0.27399272,68380.0,68372.0,0.07312835]
[1771708644458,0.02480784,68379.0,68372.0,0.07312835]
[1771708644818,0.02480784,68379.0,68373.0,0.07312828]
[1771708645220,0.02480784,68379.0,68371.0,0.07313017]
[1771708645363,0.02480784,68377.0,68370.0,0.07329125]
[1771708647198,0.02480784,68377.0,68372.0,0.07312861]
[1771708647603,9.4e-05,68383.0,68370.0,0.00016]
[1771708647604,0.00016,68390.0,68374.0,0.27611019]
[1771708647803,0.00016,68390.0,68371.0,0.29250884]
[1771708647804,0.00016,68390.0,68387.0,0.07311232]
[1771708648218,0.0001714,68392.0,68386.0,0.07311229]
[1771708648219,0.0001714,68392.0,68388.0,0.07311224]
[1771708649613,0.0001714,68392.0,68389.0,0.07311104]
[1771708650573,0.0001714,68392.0,68388.0,0.07311205]
[1771708651538,0.0001714,68392.0,68387.0,0.073113]
[1771708652472,0.20040784,68391.0,68387.0,0.07311243]
[1771708652982,0.47440056,68391.0,68387.0,0.07311243]
[1771708653546,0.47440056,68391.0,68382.0,0.29247236]
[1771708653547,0.20040784,68391.0,68382.0,0.29247236]
[1771708653710,0.02480784,68390.0,68382.0,0.29247236]
[1771708654150,0.02480784,68390.0,68380.0,0.00016]
[1771708654151,0.27399272,68389.0,68380.0,0.00016]
[1771708654462,0.07311042,68390.0,68380.0,0.00016]
[1771708654463,0.02480784,68386.0,68381.0,0.07311972]
[1771708654604,0.02480784,68384.0,68381.0,0.07311972]
[1771708655238,0.02480784,68384.0,68382.0,0.0731177]
[1771708655867,0.02480784,68384.0,68374.0,0.29250691]
[1771708656033,0.02480784,68384.0,68374.0,0.29272691]
[1771708656516,0.02480784,68384.0,68376.0,0.29249863]
[1771708656718,0.02480784,68384.0,68374.0,0.00022]
[1771708656719,0.27399272,68389.0,68383.0,0.07311758]
[1771708656925,0.02480784,68388.0,68383.0,0.07311758]
[1771708657144,0.02480784,68388.0,68384.0,0.07311649]
[1771708659235,0.00016,68390.0,68384.0,0.07311649]
[1771708659389,0.00016,68390.0,68384.0,0.07282919]
[1771708660024,0.00016,68390.0,68384.0,0.07268555]
[1771708661519,0.00016,68390.0,68384.0,0.07254193]
[1771708661745,0.00016,68390.0,68385.0,0.07311495]
[1771708662973,0.00016,68390.0,68379.0,0.0128015]
[1771708663196,0.00016,68390.0,68388.0,0.07311217]
[1771708663407,0.00016,68390.0,68388.0,0.07296856]
[1771708664154,0.00016,68390.0,68387.0,0.07311326]
[1771708664597,0.00016,68390.0,68386.0,0.07311404]
[1771708665537,0.00016,68390.0,68386.0,0.07297041]
[1771708669210,0.00016,68390.0,68386.0,0.07311399]
[1771708670871,0.00016,68390.0,68384.0,0.07311632]
[1771708671649,0.00016,68390.0,68385.0,0.07311544]
[1771708672259,0.00016,68390.0,68384.0,0.07319271]
[1771708676826,0.00016,68390.0,68381.0,0.00022]
[1771708676827,0.07311412,68387.0,68381.0,0.00022]
[1771708676980,0.07311412,68387.0,68370.0,0.05618947]
[1771708676981,0.00016,68390.0,68370.0,0.00016]
[1771708676982,0.07311941,68382.0,68370.0,0.00016]
[1771708677232,0.02414861,68377.0,68371.0,0.0731294]
[1771708677414,0.02414861,68377.0,68370.0,0.07329056]
[1771708677586,0.02414861,68377.0,68371.0,0.07313042]
[1771708679285,0.09727265,68377.0,68370.0,0.07329056]
[1771708679859,0.09727546,68375.0,68370.0,0.00016]
[1771708680036,0.09727641,68374.0,68366.0,0.07313494]
[1771708680235,0.29249376,68378.0,68366.0,0.07313494]
[1771708680408,0.02414861,68372.0,68366.0,0.07313494]
[1771708681003,0.02414861,68372.0,68366.0,0.07325156]
[1771708682527,0.09727807,68372.0,68366.0,0.00011662]
[1771708682731,0.07313124,68371.0,68366.0,0.00011662]
[1771708682963,0.02414861,68371.0,68366.0,0.00011662]
[1771708685128,0.1756,68387.0,68347.0,0.26355958]
[1771708685129,0.26806587,68369.0,68347.0,0.26355958]
[1771708685356,0.07313916,68363.0,68356.0,0.07314589]
[1771708685828,0.26806587,68367.0,68346.0,0.0128015]
[1771708686035,0.07314342,68359.0,68351.0,0.07315105]
[1771708686241,0.02414861,68360.0,68351.0,0.07315159]
[1771708686623,0.07314325,68359.0,68351.0,0.07315159]
[1771708686850,0.0731446,68358.0,68351.0,0.07315181]
[1771708687206,0.07314437,68358.0,68351.0,0.07315181]
[1771708687439,0.02414861,68357.0,68352.0,0.00022]
[1771708687606,0.02414861,68357.0,68351.0,0.07315181]
[1771708687607,0.02414861,68356.0,68351.0,0.07315181]
[1771708689057,0.07314325,68359.0,68351.0,0.07315181]
[1771708689891,0.07314454,68358.0,68351.0,0.07315181]
[1771708690260,0.07314454,68358.0,68350.0,0.07331075]
[1771708690261,0.07314432,68358.0,68350.0,0.07331075]
[1771708691511,0.07314432,68358.0,68351.0,0.07315181]
[1771708692571,0.0731436,68359.0,68352.0,0.07315067]
[1771708692774,0.0731436,68359.0,68350.0,0.00016]
[1771708692775,0.29255417,68364.0,68350.0,0.00016]
[1771708692776,0.02316517,68379.0,68360.0,0.28615786]
[1771708692973,0.07312621,68375.0,68367.0,0.07313363]
[1771708693184,0.07312621,68375.0,68368.0,0.07313302]
[1771708693699,0.07312621,68375.0,68367.0,0.07313363]
[1771708694899,0.07312737,68374.0,68367.0,0.07313363]
[1771708701016,0.07312835,68373.0,68366.0,0.07313543]
[1771708701919,0.07332737,68374.0,68366.0,0.07313543]
[1771708701920,0.0002,68374.0,68366.0,0.0001192]
[1771708702075,0.0002,68374.0,68363.0,0.0001374]
[1771708702268,0.0002,68374.0,68369.0,0.07313207]
[1771708702479,0.02316517,68379.0,68373.0,0.07312755]
[1771708702829,0.02316517,68379.0,68371.0,0.07313006]
[1771708703232,0.02316517,68379.0,68372.0,0.07312935]
[1771708703597,0.02316517,68379.0,68373.0,0.07312761]
[1771708704012,0.02316517,68379.0,68374.0,0.07312713]
[1771708704392,0.00016,68380.0,68374.0,0.07312713]
[1771708705764,0.07328082,68380.0,68373.0,0.07312799]
[1771708705967,0.00016,68380.0,68376.0,0.07312505]
[1771708706174,0.00016,68380.0,68374.0,0.07312644]
[1771708706773,0.00016,68380.0,68376.0,0.07312435]
[1771708708825,0.00016,68380.0,68375.0,0.0731258]
[1771708709233,0.00016,68380.0,68376.0,0.073125]
[1771708710047,0.00016,68380.0,68371.0,0.07312995]
[1771708710048,0.07312303,68378.0,68371.0,0.07312995]
[1771708710270,0.07312303,68378.0,68370.0,0.07312949]
[1771708710750,0.07312206,68379.0,68372.0,0.07312933]
[1771708711749,0.07348176,68380.0,68373.0,0.07312821]
[1771708714750,0.09628433,68382.0,68370.0,0.00016]
[1771708714751,0.07311893,68382.0,68370.0,0.00016]
[1771708715060,0.02316517,68380.0,68373.0,0.07312724]
[1771708715202,0.09628607,68380.0,68373.0,0.07312724]
[1771708715812,0.02316517,68380.0,68373.0,0.07312724]
[1771708716444,0.02316517,68380.0,68374.0,0.07312711]
[1771708717352,0.02316517,68380.0,68363.0,0.0001374]
[1771708717353,0.02316517,68380.0,68356.0,0.0001374]
[1771708717354,0.26058732,68377.0,68356.0,0.0001374]
[1771708717557,0.00016,68380.0,68357.0,0.07314539]
[1771708717558,0.07313586,68366.0,68357.0,0.07314539]
[1771708717764,0.07313722,68365.0,68358.0,0.07314336]
[1771708717972,0.07313722,68365.0,68357.0,0.07314539]
[1771708717973,0.02342673,68365.0,68359.0,0.07314299]
[1771708718369,0.02342673,68365.0,68360.0,0.00022]
[1771708724931,0.26058732,68367.0,68360.0,0.07336217]
[1771708726476,0.00016,68370.0,68360.0,0.00022]
[1771708726681,0.00016,68370.0,68366.0,0.07313517]
[1771708728986,0.00016,68370.0,68365.0,0.07313658]
[1771708733953,0.00016,68370.0,68366.0,0.07313554]
[1771708734597,0.07312584,68376.0,68361.0,0.02258745]
[1771708734792,0.07312584,68376.0,68359.0,0.29257035]
[1771708734793,0.07312753,68374.0,68367.0,0.07313444]
[1771708735043,0.00016,68370.0,68367.0,0.07313444]
[1771708735446,0.26759022,68377.0,68370.0,0.07313057]
[1771708735447,0.0002,68377.0,68370.0,0.07313057]
[1771708735595,0.00016,68380.0,68374.0,0.07312616]
[1771708735795,0.00016,68380.0,68370.0,0.29252588]
[1771708736847,0.00016,68380.0,68370.0,0.29352588]
[1771708737205,0.00016,68380.0,68370.0,0.29252588]
[1771708737408,0.00016,68380.0,68375.0,0.07312607]
[1771708738033,0.00016,68380.0,68374.0,0.07312691]
[1771708740108,0.29246324,68385.0,68374.0,0.07312691]
[1771708740326,0.11625216,68400.0,68380.0,0.01380078]
[1771708740327,0.07310771,68393.0,68380.0,0.01380078]
[1771708740520,0.07310891,68392.0,68383.0,0.07311705]
[1771708740723,0.09653564,68392.0,68383.0,0.07311705]
[1771708742322,0.09682064,68392.0,68383.0,0.07311705]
[1771708742534,0.09682064,68392.0,68384.0,0.07311599]
[1771708746796,0.09702064,68392.0,68384.0,0.07311599]
[1771708748066,0.09702064,68392.0,68385.0,0.07311537]
[1771708752975,0.09702064,68392.0,68385.0,0.07251653]
[1771708763193,0.02391173,68392.0,68385.0,0.07251653]
[1771708763600,0.0731069,68393.0,68386.0,0.07311366]
[1771708763811,0.07310525,68395.0,68387.0,0.07311234]
[1771708763974,0.07310595,68394.0,68387.0,0.07311234]
[1771708764369,0.07310369,68396.0,68387.0,0.07311234]
[1771708764370,0.07310475,68395.0,68387.0,0.07311255]
[1771708764775,0.07310634,68394.0,68387.0,0.07311255]
[1771708767635,0.06810634,68394.0,68387.0,0.07311255]
[1771708768924,0.06830634,68394.0,68387.0,0.07311255]
[1771708771877,0.07310706,68393.0,68386.0,0.07311412]
[1771708772559,0.07310798,68392.0,68386.0,0.07311412]
[1771708772963,0.07310798,68392.0,68385.0,0.07333527]
[1771708776539,0.07330798,68392.0,68385.0,0.07333527]
[1771708781842,0.07310975,68391.0,68385.0,0.00022]
[1771708782247,0.07311048,68390.0,68385.0,0.00022]
[1771708787292,0.07310933,68391.0,68385.0,0.00022]
[1771708789367,0.07311013,68390.0,68385.0,0.00022]
[1771708789569,0.07311188,68389.0,68385.0,0.00022]
[1771708790764,0.0002,68392.0,68385.0,0.00022]
[1771708790965,0.0002,68392.0,68387.0,0.07311225]
[1771708791266,0.0002,68392.0,68388.0,0.07311211]
[1771708791677,0.0002,68392.0,68387.0,0.07311295]
[1771708797029,0.07310903,68391.0,68385.0,0.00022]
[1771708797370,0.0002,68392.0,68385.0,0.00022]
[1771708797520,0.0002,68392.0,68386.0,0.07311355]
[1771708798520,0.0002,68392.0,68388.0,0.0731122]
[1771708798725,0.0002,68392.0,68387.0,0.06698344]
[1771708798926,0.0002,68392.0,68387.0,0.06382359]
[1771708800589,0.0002,68392.0,68388.0,0.07311215]
[1771708802193,0.0002,68392.0,68387.0,0.0733325]
[1771708802556,0.0002,68392.0,68388.0,0.07311216]
[1771708802894,0.07330613,68394.0,68388.0,0.09594812]
[1771708802895,0.000199,68393.0,68388.0,0.09594812]
[1771708803071,0.0002,68394.0,68388.0,0.07311216]
[1771708803404,0.07310262,68397.0,68389.0,0.07311022]
[1771708803574,0.0136388,68396.0,68389.0,0.07311022]
[1771708803777,0.0136388,68395.0,68389.0,0.07311022]
[1771708804095,0.0731037,68396.0,68389.0,0.07311022]
[1771708807415,0.07310369,68396.0,68389.0,0.07311022]
[1771708811018,0.07330369,68396.0,68389.0,0.07311022]
[1771708813635,0.0002,68396.0,68389.0,0.07311117]
[1771708813842,0.14547583,68398.0,68391.0,0.07310839]
[1771708814043,0.07310127,68399.0,68392.0,0.0731075]
[1771708814243,0.01363869,68398.0,68392.0,0.0731075]
[1771708814431,0.07310127,68399.0,68392.0,0.0731075]
[1771708814634,0.01363677,68398.0,68392.0,0.0731075]
[1771708814851,0.0733948,68400.0,68391.0,0.07310695]
[1771708815062,0.01363677,68399.0,68391.0,0.07310695]
[1771708815391,0.01363677,68398.0,68391.0,0.07310695]
[1771708815662,0.0733948,68400.0,68391.0,0.07310695]
[1771708815834,0.0733948,68400.0,68390.0,0.02300829]
[1771708816049,0.0002934,68400.0,68394.0,0.07310574]
[1771708816247,0.07339288,68400.0,68394.0,0.07310581]
[1771708816742,0.0002934,68400.0,68394.0,0.07310581]
[1771708819899,0.07339349,68400.0,68393.0,0.07310651]
[1771708823870,0.07310048,68399.0,68393.0,0.07310651]
[1771708824164,0.07339299,68400.0,68393.0,0.07310651]
[1771708824891,0.0002934,68400.0,68393.0,0.07310651]
[1771708825106,0.07309435,68405.0,68390.0,0.07903415]
[1771708825262,0.0730937,68406.0,68399.0,0.0730996]
[1771708825513,0.07322534,68407.0,68396.0,0.07903415]
[1771708825722,0.07322534,68407.0,68399.0,0.07309947]
[1771708826389,0.0002,68400.0,68399.0,0.07309947]
[1771708826600,0.0002,68400.0,68396.0,0.02300829]
[1771708826601,0.07361403,68407.0,68403.0,0.07309537]
[1771708826602,0.00052209,68407.0,68403.0,0.07309537]
[1771708826842,0.1756,68408.0,68403.0,0.07295179]
[1771708826843,0.10571996,68408.0,68403.0,0.07295179]
[1771708827052,0.10579949,68408.0,68404.0,0.07309419]
[1771708827253,0.10579949,68408.0,68404.0,0.05328847]
[1771708827629,0.10579949,68408.0,68403.0,0.07295179]
[1771708829046,0.10579949,68408.0,68402.0,0.07309697]
[1771708829250,0.17889037,68408.0,68401.0,0.07309787]
[1771708829603,0.10579949,68408.0,68402.0,0.07309693]
[1771708830201,0.09969783,68408.0,68404.0,0.07309415]
[1771708830404,7.953e-05,68408.0,68404.0,0.07309415]
[1771708831020,7.953e-05,68408.0,68403.0,0.07309546]
[1771708831728,7.953e-05,68408.0,68404.0,0.07309497]
[1771708832728,7.953e-05,68408.0,68404.0,0.07409497]
[1771708832948,7.953e-05,68408.0,68404.0,0.07309414]
[1771708833758,0.01007953,68408.0,68404.0,0.07309414]
[1771708835413,0.01007953,68408.0,68405.0,0.07309394]
[1771708836123,0.07309389,68406.0,68391.0,0.02300829]
[1771708836331,0.07309389,68406.0,68394.0,0.07310582]
[1771708836492,0.07309389,68406.0,68395.0,0.02300829]
[1771708837271,0.08317071,68408.0,68400.0,0.07309861]
[1771708837472,0.07309206,68407.0,68399.0,0.0731002]
[1771708838526,0.07309206,68407.0,68400.0,0.07309928]
[1771708839706,0.07309206,68407.0,68399.0,0.07310021]
[1771708840041,0.01007953,68408.0,68393.0,0.00022]
[1771708840042,0.07310346,68397.0,68393.0,0.00022]
[1771708840334,0.37419026,68397.0,68393.0,0.00022]
[1771708841255,0.30108738,68397.0,68393.0,0.00022]
[1771708841421,0.02490006,68397.0,68393.0,0.00022]
[1771708842467,0.07310378,68396.0,68393.0,0.00022]
[1771708843844,0.09800288,68397.0,68393.0,0.00022]
[1771708845849,0.07310282,68397.0,68393.0,0.00022]
[1771708849616,0.07310189,68398.0,68393.0,0.00022]
[1771708851078,0.07310059,68399.0,68393.0,0.00022]
[1771708852236,0.29238648,68403.0,68393.0,0.00022]
[1771708852439,0.07309908,68401.0,68394.0,0.09569116]
[1771708852741,0.29237573,68406.0,68394.0,0.02258561]
[1771708852742,0.27618732,68406.0,68394.0,0.02258561]
[1771708852946,0.07309509,68405.0,68396.0,0.02258561]
[1771708853086,0.07309509,68405.0,68397.0,0.07310188]
[1771708853742,0.07309519,68404.0,68397.0,0.07310188]
[1771708855630,0.07309519,68404.0,68397.0,0.07332188]
[1771708855837,0.07309447,68405.0,68397.0,0.07332188]
[1771708857329,0.0730953,68404.0,68397.0,0.07332188]
[1771708859525,0.07309444,68405.0,68398.0,0.07310137]
[1771708860426,0.07309444,68405.0,68397.0,0.00022]
[1771708860623,0.0730958,68404.0,68397.0,0.00022]
[1771708862412,0.07329234,68407.0,68398.0,0.02258561]
[1771708862604,0.0002,68407.0,68401.0,0.07309828]
[1771708862751,0.0002,68407.0,68400.0,0.07309901]
[1771708862951,0.07329281,68407.0,68400.0,0.07309901]
[1771708863150,0.0002,68404.0,68400.0,0.07309901]
[1771708865675,0.0002,68404.0,68393.0,0.00022]
[1771708865677,0.27618732,68402.0,68393.0,0.00022]
[1771708865863,0.27618732,68393.0,68387.0,0.00022]
[1771708866229,0.02490006,68394.0,68387.0,0.00022]
[1771708866428,0.02490006,68394.0,68386.0,0.00022]
[1771708866429,0.09800878,68392.0,68386.0,0.00022]
[1771708866624,0.27618732,68391.0,68386.0,0.00022]
[1771708867222,0.27618732,68391.0,68386.0,0.07333417]
[1771708867576,0.29241248,68397.0,68386.0,0.07333417]
[1771708867577,0.09800296,68397.0,68389.0,0.07311082]
[1771708867779,0.09800296,68397.0,68386.0,0.00022]
[1771708867780,0.27618732,68396.0,68391.0,0.07310825]
[1771708868897,0.27618732,68396.0,68390.0,0.07310825]
[1771708869728,0.07310141,68399.0,68385.0,0.29293146]
[1771708869729,0.02265888,68399.0,68385.0,0.0004714]
[1771708869910,0.02265888,68399.0,68382.0,0.00022]
[1771708869911,0.28133555,68388.0,68382.0,0.00022]
[1771708870142,0.35444783,68388.0,68382.0,0.00022]
[1771708871303,0.2695603,68386.0,68382.0,0.00022]
[1771708871520,0.2695603,68385.0,68381.0,0.17556]
[1771708872186,0.2695603,68385.0,68381.0,0.13325764]
[1771708872543,0.34267782,68384.0,68381.0,0.13364633]
[1771708873387,0.2695603,68384.0,68381.0,0.13364633]
[1771708874746,0.07311682,68384.0,68378.0,0.00022]
[1771708876407,0.07311552,68385.0,68378.0,0.07334288]
[1771708876923,0.07311442,68386.0,68379.0,0.07312184]
[1771708877767,0.0731156,68385.0,68378.0,0.07334289]
[1771708886413,0.0731156,68385.0,68378.0,0.07334282]
[1771708886706,0.0733156,68385.0,68378.0,0.07334282]
[1771708889579,0.0733156,68385.0,68378.0,0.07348622]
[1771708893200,0.0733156,68385.0,68378.0,0.0003634]
[1771708893201,0.0002,68385.0,68378.0,0.0003634]
[1771708894500,0.0002,68385.0,68380.0,0.07311989]
[1771708894711,0.0002,68385.0,68380.0,0.07326329]
[1771708899806,0.00016,68390.0,68384.0,0.07311545]
[1771708900014,0.00016,68390.0,68383.0,0.07311674]
[1771708900219,0.07327029,68390.0,68383.0,0.07311674]
[1771708900423,0.07327029,68390.0,68380.0,0.02463055]
[1771708900842,0.00016,68390.0,68384.0,0.0731157]
[1771708901261,0.07327017,68390.0,68383.0,0.0731169]
[1771708901486,0.00016,68390.0,68384.0,0.07311571]
[1771708901749,0.00016,68390.0,68383.0,0.0731169]
[1771708903204,0.07327087,68390.0,68383.0,0.0731169]
[1771708905117,0.07347087,68390.0,68383.0,0.0731169]
[1771708906481,0.00036,68390.0,68383.0,0.0731169]
[1771708906680,0.07311125,68389.0,68382.0,0.07311857]
[1771708907590,0.02441392,68389.0,68378.0,0.00022]
[1771708907924,0.27308701,68384.0,68378.0,0.00022]
[1771708911250,0.27308701,68384.0,68378.0,0.07334281]
[1771708919849,0.07331643,68385.0,68378.0,0.07334281]
[1771708930895,0.0002,68385.0,68380.0,0.07312047]
[1771708931132,0.0002,68385.0,68379.0,0.07312145]
[1771708943905,0.0002,68385.0,68379.0,0.07312186]
[1771708944105,0.0002,68385.0,68380.0,0.07312045]
[1771708945823,0.07311398,68387.0,68380.0,0.07312045]
[1771708950367,0.07311398,68387.0,68380.0,0.07336905]
[1771708951789,0.07331398,68387.0,68380.0,0.07336905]
[1771708953169,0.28717715,68388.0,68381.0,0.07311878]
[1771708953369,0.28717715,68388.0,68381.0,0.07336738]
[1771708953561,0.36028969,68388.0,68381.0,0.07336738]
[1771708957715,0.07311254,68388.0,68381.0,0.07336738]
[1771708958294,0.07331254,68388.0,68381.0,0.07336738]
[1771708963121,0.0002,68388.0,68382.0,0.07311848]
[1771708963320,0.07331249,68388.0,68382.0,0.0002486]
[1771708977799,0.07331249,68388.0,68382.0,0.0004686]
[1771708980171,0.00444098,68390.0,68382.0,0.0004686]
[1771708980368,0.1459323,68395.0,68387.0,0.07311231]
[1771708980581,0.1459323,68395.0,68387.0,0.0001246]
[1771708980582,0.07310692,68393.0,68387.0,0.0001246]
[1771708981020,0.07310602,68394.0,68387.0,0.07323778]
[1771708983829,0.1756,68399.0,68392.0,0.07310707]
[1771708984044,0.24876878,68399.0,68392.0,0.07302707]
[1771708984420,6.815e-05,68399.0,68388.0,0.29244526]
[1771708984666,6.815e-05,68399.0,68393.0,0.07310684]
[1771708984820,6.815e-05,68399.0,68388.0,0.0001246]
[1771708984821,6.815e-05,68399.0,68390.0,0.29243897]
[1771708985021,6.815e-05,68399.0,68389.0,0.00778191]
[1771708985278,0.1756,68407.0,68391.0,0.02282868]
[1771708985476,0.1756,68407.0,68396.0,0.07310281]
[1771708985477,0.07309602,68404.0,68396.0,0.07310281]
[1771708986186,0.07309649,68403.0,68396.0,0.07310281]
[1771708988744,0.07309744,68402.0,68395.0,0.07310451]
[1771708989595,0.07309854,68401.0,68394.0,0.07310523]
[1771708990184,0.07309758,68402.0,68395.0,0.07310461]
[1771708990362,0.07309649,68403.0,68396.0,0.07310354]
[1771708991259,0.07309751,68402.0,68395.0,0.0731045]
[1771708991501,0.07309751,68402.0,68391.0,0.31533063]
[1771708991502,0.1756,68407.0,68391.0,0.31533063]
[1771708991503,0.02255826,68400.0,68391.0,6.815e-05]
[1771708991704,0.30233057,68400.0,68392.0,0.07310796]
[1771708991954,0.27977231,68399.0,68392.0,0.07310796]
[1771708992148,0.27977231,68399.0,68391.0,0.00028815]
[1771708992355,0.27977231,68399.0,68394.0,0.07310495]
[1771708992528,0.27977231,68399.0,68391.0,0.00028815]
[1771708992529,0.27977231,68399.0,68395.0,0.07310449]
[1771708993144,0.23246906,68399.0,68395.0,0.07310449]